fUST/lending_fUST_20241231
["ID","MTS","AMOUNT","RATE_DAILY","PERIOD"]
[347278983,1735653150959,700.0,0.00025397,30]
[347278984,1735653151298,700.0,0.00025397,30]
[347278985,1735653151678,700.0,0.00025397,30]
[347278986,1735653152027,700.0,0.00025397,30]
[347278987,1735653152387,918.55266009,0.00025397,30]
[347278988,1735653166007,-500000.0,0.00022397,10]
[347278989,1735653210905,160.0,0.00022657,120]
[347278990,1735653220765,-2000000.0,0.00022404,10]
[347278999,1735653875934,500.0,0.00022561,120]
[347279007,1735654232690,-366.150979,0.00012636,2]
[347279008,1735654232700,-366.150979,0.00012764,2]
[347279009,1735654232710,-258.91679181,0.00013055,2]
[347279010,1735654232719,-366.150979,0.00013973,2]
[347279012,1735654232729,-391.5289171,0.00015064,2]
[347279014,1735654232739,-362.276003,0.00015245,2]
[347279016,1735654232748,-4418.5937072,0.00015367,2]
[347279018,1735654232758,-250.0,0.00015567,2]
[347279019,1735654232768,-300.0,0.00015979,2]
[347279020,1735654232777,-9999.999999,0.0001598,2]
[347279022,1735654232786,-250.0,0.00016958,2]
[347279024,1735654232795,-24900.0,0.00017351,2]
[347279026,1735654232805,-167.90275247,0.00017371,2]
[347279028,1735654232814,-420.0,0.00017471,2]
[347279030,1735654232823,-152.0,0.00017651,2]
[347279032,1735654232833,-500.000001,0.00017878,2]
[347279034,1735654232843,-603.49993334,0.00017918,2]
[347279161,1735654238462,-3732.81260304,0.00017918,2]
[347279162,1735654238474,-5094.61350746,0.00017918,2]
[347279163,1735654238483,-500.0,0.00017999,2]
[347279164,1735654238492,-192.0,0.00018048,2]
[347279165,1735654238502,-500.0,0.00018178,2]
[347279166,1735654238511,-681.6397504,0.00018179,2]
[347279167,1735654238520,-5253.19383371,0.00018295,2]
[347279168,1735654238532,-4177.73221013,0.00018295,2]
[347279169,1735654238544,-6217.4463453,0.00018629,2]
[347279170,1735654238556,-3213.47969854,0.00018629,2]
[347279171,1735654238565,-500.0,0.00018821,4]
[347279172,1735654238575,-4023.52030146,0.00018887,2]
[347279173,1735654238587,-1436.27547971,0.00018887,2]
[347279174,1735654238599,-3971.13026267,0.00018887,2]
[347279175,1735654238608,-9430.92604384,0.00018978,2]
[347279176,1735654238618,-1622.17975786,0.00019,2]
[347279177,1735654238628,-1622.17975781,0.00019,2]
[347279178,1735654238638,-1622.17975781,0.00019,2]
[347279179,1735654238648,-1622.17975781,0.00019,2]
[347279180,1735654238656,-621.85938056,0.00019,2]
[347279181,1735654238834,-1000.32037725,0.00019,2]
[347279182,1735654238844,-733.71746962,0.00019044,2]
[347279183,1735654238853,-167.90275246,0.00019068,2]
[347279184,1735654238863,-602.25254452,0.00019078,2]
[347279185,1735654238872,-1366.85310445,0.000191,2]
[347279186,1735654238884,-255.32665336,0.000191,2]
[347279187,1735654238894,-587.0,0.00019102,2]
[347279188,1735654238904,-74.69929607,0.00019147,2]
[347279247,1735654240445,-1582.1768154,0.00017739,2]
[347279249,1735654240458,-527.55324841,0.00019147,2]
[347279251,1735654240467,-377.26224012,0.00019173,2]
[347279253,1735654240477,-500.0,0.00019173,2]
[347279255,1735654240487,-500.0,0.00019173,2]
[347279257,1735654240497,-500.47409598,0.00019173,2]
[347279259,1735654240507,-500.0,0.00019173,2]
[347279261,1735654240516,-500.0,0.00019173,2]
[347279263,1735654240526,-537.14113991,0.00019173,2]
[347279265,1735654240535,-445.07721231,0.00019173,2]
[347279268,1735654240546,-161.7824489,0.00019173,2]
[347279269,1735654240556,-403.75102977,0.00019173,2]
[347279271,1735654240565,-420.11587146,0.00019173,2]
[347279273,1735654240575,-564.06165765,0.00019173,2]
[347279275,1735654240584,-151.0697403,0.00019173,2]
[347279278,1735654240594,-436.73974493,0.00019173,2]
[347279280,1735654240603,-500.0,0.00019173,2]
[347279281,1735654240613,-249.31941002,0.00019173,2]
[347279282,1735654240622,-202.43551993,0.00019173,2]
[347279283,1735654240632,-500.1425123,0.00019173,2]
[347279284,1735654240641,-500.0,0.00019173,2]
[347279285,1735654240651,-500.90628145,0.00019173,2]
[347279286,1735654240660,-163.40829352,0.00019173,2]
[347279287,1735654240669,-500.1693966,0.00019173,2]
[347279288,1735654240678,-361.993,0.00019177,2]
[347279289,1735654240687,-324.79548526,0.00019177,2]
[347279290,1735654240696,-235.41892649,0.00019177,2]
[347279291,1735654240706,-500.0,0.00019177,2]
[347279292,1735654240715,-500.0,0.00019177,2]
[347279293,1735654240725,-500.0,0.00019177,2]
[347279294,1735654240734,-500.0,0.00019177,2]
[347279295,1735654240743,-500.0,0.00019177,2]
[347279296,1735654240753,-500.0,0.00019177,2]
[347279297,1735654240762,-500.0,0.00019177,2]
[347279298,1735654240772,-500.0,0.00019177,2]
[347279299,1735654240781,-500.0,0.00019177,2]
[347279300,1735654240790,-406.46509012,0.00019177,2]
[347279301,1735654240799,-406.3028843,0.00019177,2]
[347279302,1735654240808,-470.80836687,0.00019177,2]
[347279303,1735654240817,-477.02598929,0.00019177,2]
[347279304,1735654240826,-580.87705661,0.00019177,2]
[347279305,1735654240835,-415.680482,0.00019177,2]
[347279306,1735654240845,-218.58772999,0.00019177,2]
[347279307,1735654240854,-327.34720783,0.00019177,2]
[347279308,1735654240864,-500.0,0.00019177,2]
[347279309,1735654240873,-500.0,0.00019177,2]
[347279310,1735654240883,-505.8053566,0.00019178,2]
[347279311,1735654240893,-500.0,0.00019178,2]
[347279312,1735654240902,-500.77914922,0.00019178,2]
[347279313,1735654240911,-500.0,0.00019178,2]
[347279314,1735654240920,-500.0,0.00019178,2]
[347279315,1735654240929,-1415.32,0.00019178,2]
[347279316,1735654240938,-500.0,0.00019178,2]
[347279317,1735654240947,-508.21318147,0.00019178,2]
[347279318,1735654240956,-500.0,0.00019178,2]
[347279319,1735654240966,-1000.0,0.00019178,2]
[347279321,1735654240975,-500.0,0.00019178,2]
[347279323,1735654240984,-505.03584665,0.00019178,2]
[347279325,1735654240993,-501.3172296,0.00019178,2]
[347279327,1735654241003,-583.50032369,0.00019178,2]
[347279329,1735654241012,-500.0,0.00019178,2]
[347279331,1735654241022,-500.0,0.00019178,2]
[347279333,1735654241032,-500.0,0.00019178,2]
[347279335,1735654241042,-376.6304869,0.00019178,2]
[347279337,1735654241052,-500.0,0.00019178,2]
[347279338,1735654241062,-500.0,0.00019178,2]
[347279339,1735654241071,-500.0,0.00019178,2]
[347279341,1735654241080,-500.0,0.00019178,2]
[347279343,1735654241090,-500.0,0.00019178,2]
[347279345,1735654241099,-500.0,0.00019178,2]
[347279347,1735654241109,-500.0,0.00019178,2]
[347279349,1735654241119,-500.0,0.00019178,2]
[347279351,1735654241128,-500.0,0.00019178,2]
[347279353,1735654241139,-500.0,0.00019178,2]
[347279355,1735654241148,-500.0,0.00019178,2]
[347279357,1735654241158,-500.0,0.00019178,2]
[347279359,1735654241171,-500.69958194,0.00019178,2]
[347279362,1735654241180,-500.0,0.00019178,2]
[347279363,1735654241189,-500.0,0.00019178,2]
[347279365,1735654241199,-500.0,0.00019178,2]
[347279367,1735654241208,-500.0,0.00019178,2]
[347279369,1735654241218,-500.0,0.00019178,2]
[347279371,1735654241228,-500.0,0.00019178,2]
[347279373,1735654241238,-500.0,0.00019178,2]
[347279375,1735654241249,-501.51902783,0.00019178,2]
[347279377,1735654241259,-500.0,0.00019178,2]
[347279378,1735654241269,-500.0,0.00019178,2]
[347279379,1735654241278,-502.98484956,0.00019178,2]
[347279380,1735654241288,-500.0,0.00019178,2]
[347279381,1735654241298,-500.0,0.00019178,2]
[347279383,1735654241308,-500.0,0.00019178,2]
[347279384,1735654241317,-500.0,0.00019178,2]
[347279386,1735654241327,-500.0,0.00019178,2]
[347279388,1735654241337,-500.0,0.00019178,2]
[347279390,1735654241346,-500.0,0.00019178,2]
[347279391,1735654241357,-500.0,0.00019178,2]
[347279392,1735654241367,-500.0,0.00019178,2]
[347279393,1735654241376,-500.0,0.00019178,2]
[347279394,1735654241386,-500.0,0.00019178,2]
[347279395,1735654241396,-500.0,0.00019178,2]
[347279396,1735654241406,-500.0,0.00019178,2]
[347279397,1735654241415,-500.0,0.00019178,2]
[347279398,1735654241424,-500.0,0.00019178,2]
[347279399,1735654241434,-500.0,0.00019178,2]
[347279400,1735654241443,-854.13,0.00019178,2]
[347279401,1735654241452,-500.0,0.00019178,2]
[347279402,1735654241462,-501.19444661,0.00019178,2]
[347279403,1735654241471,-500.0,0.00019178,2]
[347279404,1735654241480,-500.0,0.00019178,2]
[347279405,1735654241489,-500.0,0.00019178,2]
[347279406,1735654241499,-500.0,0.00019178,2]
[347279407,1735654241508,-500.0,0.00019178,2]
[347279408,1735654241518,-500.0,0.00019178,2]
[347279409,1735654241527,-500.0,0.00019178,2]
[347279410,1735654241536,-512.25603659,0.00019178,2]
[347279411,1735654241547,-500.0,0.00019178,2]
[347279412,1735654241556,-500.0,0.00019178,2]
[347279413,1735654241566,-500.0,0.00019178,2]
[347279414,1735654241575,-500.0,0.00019178,2]
[347279415,1735654241585,-500.0,0.00019178,2]
[347279416,1735654241718,-500.0,0.00019178,2]
[347279417,1735654241730,-500.0,0.00019178,2]
[347279418,1735654241740,-500.0,0.00019178,2]
[347279419,1735654241751,-500.0,0.00019178,2]
[347279420,1735654241761,-500.0,0.00019178,2]
[347279421,1735654241770,-500.0,0.00019178,2]
[347279422,1735654241779,-500.0,0.00019178,2]
[347279423,1735654241788,-500.0,0.00019178,2]
[347279424,1735654241798,-500.0,0.00019178,2]
[347279425,1735654241808,-500.0,0.00019178,2]
[347279426,1735654241817,-500.0,0.00019178,2]
[347279427,1735654241826,-500.0,0.00019178,2]
[347279428,1735654241835,-500.0,0.00019178,2]
[347279429,1735654241844,-500.0,0.00019178,2]
[347279430,1735654241854,-506.75623444,0.00019178,2]
[347279431,1735654241863,-500.0,0.00019178,2]
[347279432,1735654241873,-500.0,0.00019178,2]
[347279433,1735654241882,-500.0,0.00019178,2]
[347279434,1735654241892,-500.0,0.00019178,2]
[347279435,1735654241901,-500.0,0.00019178,2]
[347279436,1735654241910,-500.0,0.00019178,2]
[347279437,1735654241920,-500.0,0.00019178,2]
[347279438,1735654241929,-500.0,0.00019178,2]
[347279439,1735654241938,-500.0,0.00019178,2]
[347279440,1735654241947,-500.0,0.00019178,2]
[347279441,1735654241955,-500.0,0.00019178,2]
[347279442,1735654241965,-500.0,0.00019178,2]
[347279443,1735654241974,-500.0,0.00019178,2]
[347279444,1735654241983,-500.0,0.00019178,2]
[347279445,1735654241993,-500.0,0.00019178,2]
[347279446,1735654242002,-500.0,0.00019178,2]
[347279447,1735654242011,-500.0,0.00019178,2]
[347279448,1735654242020,-500.0,0.00019178,2]
[347279449,1735654242029,-720.53,0.00019178,2]
[347279450,1735654242038,-500.0,0.00019178,2]
[347279451,1735654242048,-510.7236771,0.00019178,2]
[347279452,1735654242057,-500.0,0.00019178,2]
[347279453,1735654242067,-500.0,0.00019178,2]
[347279454,1735654242077,-500.0,0.00019178,2]
[347279455,1735654242086,-500.0,0.00019178,2]
[347279456,1735654242096,-500.0,0.00019178,2]
[347279457,1735654242105,-506.95677215,0.00019178,2]
[347279458,1735654242115,-500.0,0.00019178,2]
[347279459,1735654242124,-500.0,0.00019178,2]
[347279460,1735654242133,-500.0,0.00019178,2]
[347279461,1735654242142,-500.0,0.00019178,2]
[347279462,1735654242151,-500.0,0.00019178,2]
[347279463,1735654242161,-500.0,0.00019178,2]
[347279464,1735654242173,-500.0,0.00019178,2]
[347279465,1735654242183,-500.0,0.00019178,2]
[347279466,1735654242192,-500.0,0.00019178,2]
[347279467,1735654242201,-500.0,0.00019178,2]
[347279468,1735654242211,-500.0,0.00019178,2]
[347279469,1735654242221,-500.0,0.00019178,2]
[347279470,1735654242230,-500.0,0.00019178,2]
[347279471,1735654242239,-500.0,0.00019178,2]
[347279472,1735654242250,-501.0215994,0.00019178,2]
[347279473,1735654242259,-500.0,0.00019178,2]
[347279474,1735654242269,-500.0,0.00019178,2]
[347279475,1735654242278,-500.0,0.00019178,2]
[347279476,1735654242288,-541.66,0.00019178,2]
[347279477,1735654242298,-576.22724723,0.00019178,2]
[347279478,1735654242308,-500.0,0.00019178,2]
[347279479,1735654242317,-500.0,0.00019178,2]
[347279480,1735654242327,-616.32936226,0.00019178,2]
[347279481,1735654242336,-504.58685673,0.00019178,2]
[347279482,1735654242346,-500.0,0.00019178,2]
[347279483,1735654242356,-500.0,0.00019178,2]
[347279484,1735654242365,-375.52818558,0.00019178,2]
[347279485,1735654242374,-500.0,0.00019178,2]
[347279486,1735654242384,-500.0,0.00019178,2]
[347279487,1735654242394,-358.20553069,0.00019178,2]
[347279488,1735654242403,-500.0,0.00019178,2]
[347279489,1735654242413,-500.0,0.00019178,2]
[347279490,1735654242422,-500.0,0.00019178,2]
[347279491,1735654242432,-500.0,0.00019178,2]
[347279492,1735654242441,-500.0,0.00019178,2]
[347279493,1735654242451,-469.20452296,0.00019178,2]
[347279494,1735654242461,-500.0,0.00019178,2]
[347279495,1735654242471,-500.0,0.00019178,2]
[347279496,1735654242481,-500.0,0.00019178,2]
[347279497,1735654242490,-500.0,0.00019178,2]
[347279498,1735654242500,-500.0,0.00019178,2]
[347279499,1735654242509,-503.72501014,0.00019178,2]
[347279501,1735654242519,-976.17,0.00019178,2]
[347279503,1735654242528,-500.0,0.00019178,2]
[347279504,1735654242537,-500.0,0.00019178,2]
[347279505,1735654242547,-500.0,0.00019178,2]
[347279506,1735654242557,-500.0,0.00019178,2]
[347279507,1735654242566,-188.08443617,0.00019178,2]
[347279509,1735654242575,-500.0,0.00019178,2]
[347279510,1735654242586,-500.0,0.00019178,2]
[347279512,1735654242595,-500.0,0.00019178,2]
[347279514,1735654242605,-500.0,0.00019178,2]
[347279516,1735654242615,-500.0,0.00019178,2]
[347279518,1735654242624,-500.0,0.00019178,2]
[347279519,1735654242635,-500.0,0.00019178,2]
[347279520,1735654242645,-500.0,0.00019178,2]
[347279521,1735654242654,-1363.12,0.00019178,2]
[347279522,1735654242664,-500.0,0.00019178,2]
[347279523,1735654242674,-500.0,0.00019178,2]
[347279524,1735654242684,-500.0,0.00019178,2]
[347279525,1735654242693,-500.0,0.00019178,2]
[347279526,1735654242703,-505.24845566,0.00019178,2]
[347279527,1735654242712,-224.29944625,0.00019178,2]
[347279528,1735654242721,-536.61006277,0.00019178,2]
[347279529,1735654242730,-502.26321738,0.00019178,2]
[347279530,1735654242739,-500.0,0.00019178,2]
[347279532,1735654242750,-500.0,0.00019178,2]
[347279534,1735654242759,-500.0,0.00019178,2]
[347279535,1735654242768,-500.0,0.00019178,2]
[347279537,1735654242778,-503.81761922,0.00019178,2]
[347279539,1735654242787,-500.0,0.00019178,2]
[347279540,1735654242799,-6983.09,0.00019178,2]
[347279542,1735654242811,-500.0,0.00019178,2]
[347279544,1735654242820,-500.0,0.00019178,2]
[347279546,1735654242830,-1396.39,0.00019178,2]
[347279548,1735654242839,-574.01686781,0.00019178,2]
[347279550,1735654242849,-500.0,0.00019178,2]
[347279551,1735654242858,-500.0,0.00019178,2]
[347279552,1735654242868,-500.0,0.00019178,2]
[347279553,1735654242878,-500.0,0.00019178,2]
[347279554,1735654242887,-500.0,0.00019178,2]
[347279555,1735654242897,-500.0,0.00019178,2]
[347279556,1735654242906,-500.0,0.00019178,2]
[347279558,1735654242916,-500.0,0.00019178,2]
[347279560,1735654242926,-500.0,0.00019178,2]
[347279562,1735654242936,-500.0,0.00019178,2]
[347279564,1735654242946,-500.0,0.00019178,2]
[347279566,1735654242955,-500.46783122,0.00019178,2]
[347279568,1735654242966,-524.64,0.00019178,2]
[347279570,1735654242976,-500.0,0.00019178,2]
[347279572,1735654242985,-500.0,0.00019178,2]
[347279573,1735654242995,-500.0,0.00019178,2]
[347279575,1735654243004,-779.73,0.00019178,2]
[347279576,1735654243014,-540.49419282,0.00019178,2]
[347279577,1735654243023,-500.0,0.00019178,2]
[347279578,1735654243033,-9995.05,0.00019178,2]
[347279579,1735654243043,-500.0,0.00019178,2]
[347279580,1735654243054,-500.0,0.00019178,2]
[347279582,1735654243064,-500.0,0.00019178,2]
[347279584,1735654243073,-500.0,0.00019178,2]
[347279585,1735654243083,-500.0,0.00019178,2]
[347279586,1735654243093,-500.0,0.00019178,2]
[347279588,1735654243103,-557.91227516,0.00019178,2]
[347279589,1735654243113,-500.0,0.00019178,2]
[347279591,1735654243123,-505.37404848,0.00019178,2]
[347279594,1735654243132,-500.0,0.00019178,2]
[347279597,1735654243141,-500.0,0.00019178,2]
[347279598,1735654243150,-500.0,0.00019178,2]
[347279599,1735654243159,-500.0,0.00019178,2]
[347279600,1735654243171,-500.0,0.00019178,2]
[347279601,1735654243181,-500.0,0.00019178,2]
[347279602,1735654243191,-503.21,0.00019178,2]
[347279603,1735654243201,-500.0,0.00019178,2]
[347279604,1735654243213,-500.0,0.00019178,2]
[347279605,1735654243222,-500.0,0.00019178,2]
[347279606,1735654243232,-500.0,0.00019178,2]
[347279607,1735654243242,-500.0,0.00019178,2]
[347279608,1735654243252,-490.66538045,0.00019178,2]
[347279609,1735654243261,-1127.97,0.00019178,2]
[347279610,1735654243271,-500.0,0.00019178,2]
[347279611,1735654243280,-500.0,0.00019178,2]
[347279612,1735654243290,-500.0,0.00019178,2]
[347279613,1735654243300,-500.0,0.00019178,2]
[347279614,1735654243310,-582.89,0.00019178,2]
[347279615,1735654243320,-500.0,0.00019178,2]
[347279616,1735654243330,-500.0,0.00019178,2]
[347279617,1735654243340,-500.0,0.00019178,2]
[347279618,1735654243349,-500.0,0.00019178,2]
[347279619,1735654243359,-500.0,0.00019178,2]
[347279620,1735654243369,-500.0,0.00019178,2]
[347279621,1735654243378,-491.54360481,0.00019178,2]
[347279622,1735654243388,-500.0,0.00019178,2]
[347279623,1735654243398,-500.0,0.00019178,2]
[347279624,1735654243407,-500.0,0.00019178,2]
[347279625,1735654243416,-501.98422931,0.00019178,2]
[347279626,1735654243426,-501.7123401,0.00019178,2]
[347279627,1735654243436,-500.0,0.00019178,2]
[347279628,1735654243445,-500.0,0.00019178,2]
[347279629,1735654243455,-500.0,0.00019178,2]
[347279630,1735654243465,-500.0,0.00019178,2]
[347279631,1735654243474,-706.82,0.00019178,2]
[347279632,1735654243483,-586.33938306,0.00019178,2]
[347279633,1735654243493,-500.0,0.00019178,2]
[347279634,1735654243503,-500.0,0.00019178,2]
[347279635,1735654243512,-500.0,0.00019178,2]
[347279636,1735654243521,-500.0,0.00019178,2]
[347279637,1735654243530,-500.0,0.00019178,2]
[347279638,1735654243539,-500.0,0.00019178,2]
[347279639,1735654243550,-500.0,0.00019178,2]
[347279640,1735654243559,-500.0,0.00019178,2]
[347279641,1735654243569,-500.0,0.00019178,2]
[347279642,1735654243579,-500.0,0.00019178,2]
[347279643,1735654243588,-500.0,0.00019178,2]
[347279644,1735654243597,-532.26733942,0.00019178,2]
[347279645,1735654243607,-500.0,0.00019178,2]
[347279646,1735654243616,-500.0,0.00019178,2]
[347279647,1735654243626,-1538.89,0.00019178,2]
[347279648,1735654243635,-772.56,0.00019178,2]
[347279649,1735654243644,-500.0,0.00019178,2]
[347279650,1735654243654,-500.0,0.00019178,2]
[347279651,1735654243663,-500.0,0.00019178,2]
[347279652,1735654243673,-500.0,0.00019178,2]
[347279653,1735654243683,-500.0,0.00019178,2]
[347279654,1735654243692,-500.0,0.00019178,2]
[347279655,1735654243701,-500.0,0.00019178,2]
[347279656,1735654243710,-500.0,0.00019178,2]
[347279657,1735654243719,-500.0,0.00019178,2]
[347279658,1735654243729,-500.0,0.00019178,2]
[347279659,1735654243739,-500.0,0.00019178,2]
[347279660,1735654243748,-151.1480812,0.00019178,2]
[347279661,1735654243757,-500.0,0.00019178,2]
[347279662,1735654243766,-500.0,0.00019178,2]
[347279663,1735654243776,-500.0,0.00019178,2]
[347279664,1735654243785,-500.0,0.00019178,2]
[347279665,1735654243795,-500.0,0.00019178,2]
[347279666,1735654243805,-502.85933313,0.00019178,2]
[347279667,1735654243815,-500.0,0.00019178,2]
[347279668,1735654243825,-500.0,0.00019178,2]
[347279669,1735654243834,-500.0,0.00019178,2]
[347279670,1735654243844,-500.0,0.00019178,2]
[347279671,1735654243853,-500.0,0.00019178,2]
[347279672,1735654243863,-500.0,0.00019178,2]
[347279673,1735654243872,-500.0,0.00019178,2]
[347279674,1735654243882,-699.5,0.00019178,2]
[347279675,1735654243891,-500.0,0.00019178,2]
[347279676,1735654243900,-500.0,0.00019178,2]
[347279677,1735654243910,-500.0,0.00019178,2]
[347279678,1735654243919,-500.0,0.00019178,2]
[347279679,1735654243929,-500.0,0.00019178,2]
[347279680,1735654243938,-500.0,0.00019178,2]
[347279681,1735654243947,-500.0,0.00019178,2]
[347279682,1735654243957,-500.0,0.00019178,2]
[347279683,1735654243965,-500.0,0.00019178,2]
[347279684,1735654243975,-500.0,0.00019178,2]
[347279685,1735654243985,-4134.96,0.00019178,2]
[347279686,1735654243995,-500.0,0.00019178,2]
[347279687,1735654244004,-1729.56,0.00019178,2]
[347279688,1735654244014,-500.0,0.00019178,2]
[347279689,1735654244027,-500.0,0.00019178,2]
[347279690,1735654244037,-500.0,0.00019178,2]
[347279691,1735654244047,-709.2,0.00019178,2]
[347279692,1735654244057,-523.21,0.00019178,2]
[347279693,1735654244068,-500.0,0.00019178,2]
[347279694,1735654244078,-2091.67,0.00019178,2]
[347279695,1735654244089,-500.0,0.00019178,2]
[347279696,1735654244099,-500.0,0.00019178,2]
[347279697,1735654244108,-650.26,0.00019178,2]
[347279698,1735654244118,-5311.57,0.00019178,2]
[347279699,1735654244128,-500.0,0.00019178,2]
[347279700,1735654244137,-500.0,0.00019178,2]
[347279701,1735654244147,-500.0,0.00019178,2]
[347279702,1735654244157,-5311.57,0.00019178,2]
[347279703,1735654244167,-5311.57,0.00019178,2]
[347279704,1735654244180,-700.42,0.00019178,2]
[347279705,1735654244299,-5311.57,0.00019178,2]
[347279706,1735654244309,-2356.49489339,0.00019178,2]
[347279707,1735654244347,-198.42322344,0.00019177,2]
[347279708,1735654244357,-2512.50634566,0.00019178,2]
[347279709,1735654244599,-491.53985651,0.00019173,2]
[347279710,1735654244609,-442.56876095,0.00019178,2]
[347279711,1735654244618,-4065.45771254,0.00019178,2]
[347279712,1735654244634,-1246.11228746,0.00019178,2]
[347279713,1735654244643,-5311.57,0.00019178,2]
[347279714,1735654244653,-537.3940834,0.00019178,2]
[347279715,1735654244663,-2083.69,0.00019178,2]
[347279716,1735654244672,-5311.57,0.00019178,2]
[347279717,1735654244681,-500.0,0.00019178,2]
[347279718,1735654244691,-500.0,0.00019178,2]
[347279719,1735654244701,-5311.57,0.00019178,2]
[347279720,1735654244710,-475.05162914,0.00019178,2]
[347279721,1735654244722,-4836.51837086,0.00019178,2]
[347279722,1735654244731,-5311.57,0.00019178,2]
[347279723,1735654244741,-5311.57,0.00019178,2]
[347279724,1735654244750,-232.82306357,0.00019178,2]
[347279725,1735654244760,-5311.57,0.00019178,2]
[347279726,1735654244769,-5311.57,0.00019178,2]
[347279727,1735654244778,-5311.57,0.00019178,2]
[347279728,1735654244788,-5311.57,0.00019178,2]
[347279729,1735654244797,-500.0,0.00019178,2]
[347279730,1735654244806,-1754.98,0.00019178,2]
[347279731,1735654244816,-5311.57,0.00019178,2]
[347279732,1735654244825,-5311.57,0.00019178,2]
[347279733,1735654244834,-5311.57,0.00019178,2]
[347279734,1735654244843,-5311.57,0.00019178,2]
[347279735,1735654244852,-500.0,0.00019178,2]
[347279736,1735654244862,-500.0,0.00019178,2]
[347279737,1735654244871,-5311.57,0.00019178,2]
[347279738,1735654244880,-5311.57,0.00019178,2]
[347279739,1735654244889,-5311.57,0.00019178,2]
[347279740,1735654244898,-5311.70019806,0.00019178,2]
[347279741,1735654244908,-1232.17,0.00019178,2]
[347279742,1735654244917,-500.0,0.00019178,2]
[347279743,1735654244926,-500.0,0.00019178,2]
[347279744,1735654244935,-500.0,0.00019178,2]
[347279745,1735654244944,-500.0,0.00019178,2]
[347279746,1735654244954,-500.0,0.00019178,2]
[347279747,1735654244963,-500.0,0.00019178,2]
[347279748,1735654244973,-1021.79,0.00019178,2]
[347279749,1735654244982,-500.0,0.00019178,2]
[347279750,1735654244991,-500.0,0.00019178,2]
[347279751,1735654245000,-500.0,0.00019178,2]
[347279752,1735654245009,-795.98,0.00019178,2]
[347279753,1735654245018,-500.0,0.00019178,2]
[347279754,1735654245027,-500.0,0.00019178,2]
[347279755,1735654245036,-500.0,0.00019178,2]
[347279756,1735654245046,-1022.7,0.00019178,2]
[347279757,1735654245055,-1182.54,0.00019178,2]
[347279758,1735654245065,-500.0,0.00019178,2]
[347279759,1735654245074,-500.0,0.00019178,2]
[347279760,1735654245084,-1260.17,0.00019178,2]
[347279761,1735654245093,-500.0,0.00019178,2]
[347279762,1735654245102,-500.0,0.00019178,2]
[347279763,1735654245112,-525.24148733,0.00019178,2]
[347279764,1735654245121,-500.0,0.00019178,2]
[347279765,1735654245130,-500.0,0.00019178,2]
[347279766,1735654245139,-500.0,0.00019178,2]
[347279767,1735654245149,-500.0,0.00019178,2]
[347279768,1735654245158,-500.0,0.00019178,2]
[347279769,1735654245170,-500.0,0.00019178,2]
[347279770,1735654245180,-500.0,0.00019178,2]
[347279771,1735654245189,-500.0,0.00019178,2]
[347279772,1735654245199,-500.0,0.00019178,2]
[347279773,1735654245209,-500.0,0.00019178,2]
[347279774,1735654245219,-500.0,0.00019178,2]